Cogmind - Beta 16 --- EXPLORER MODE // 2025.11.06 @ 14:01:45 Player: NeoBioHazard Result: Destroyed by H-81 Overseer with Heavy Linear Accelerator Performance ------------- Evolutions (9) 4500 Regions Visited (17) 3400 Robots Destroyed (359) 1795 Value Destroyed (19620) 19620 Prototype IDs (24) 480 Alien Tech Used (0) 0 Bonus (4642) 4642 TOTAL SCORE: 34437 Bonus ------- High Alert Combat Kills 210 Follower Combat Kills 1161 Network Hubs Disabled 200 Met Data Miner 300 Built Enhanced Grunts 300 A7 Reached Mainframe 300 Met R17 at Cetus 500 Met R17 at Research 2000 Friendly Fire -329 Cogmind --------- Core Integrity 0/1600 Matter 287/300 Energy 99/100 System Corruption 7% Temperature Cool (0) Movement Core (50) Location -1/Access Parts ------- > --- POWER (2) -------- (None) > --- PROPULSION (4) --- (None) > --- UTILITY (14) ----- (None) > --- WEAPON (6) ------- (None) > --- INVENTORY (5) ---- (None) Peak State ------------ > --- POWER ------------ Light Particle Reactor Micro Antimatter Reactor > --- PROPULSION ------- Armored Heavy Treads Armored Heavy Treads > --- UTILITY ---------- Advanced Heat Sink Advanced Heat Sink Advanced Heat Sink Advanced Heat Sink Advanced Heat Sink Advanced Heat Sink Advanced Cooling System Advanced Cooling System Advanced Coolant Injector Cargo Storage Unit Advanced Targeting Computer Advanced Target Analyzer Improved Kinecellerator > --- WEAPON ----------- Tesla Rifle Gamma Rifle Heavy Disruptor Cannon KE Penetrator Railgun > --- INVENTORY -------- Neutrino Core Neutrino Core Reinforced Antimatter Reactor Particle Reactor Particle Reactor Micro Antimatter Reactor Armored Heavy Treads Armored Heavy Treads Advanced Heat Sink Advanced Heat Sink Advanced Heat Sink Advanced Heat Sink Tesla Rifle Plasma Rifle Variable Charge Gun Quantum Rifle Compact HERF Cannon KE Penetrator KE Penetrator Hypervelocity Coil Gun Heavy Gauss Cannon Gamma Bomb Array Gamma Bomb Array Gamma Bomb Array Heavy Rocket Launcher Fusion Bomb Launcher Hellfire Missile Launcher Power Maul [Rating: 176] Favorites ----------- Power Cold Fusion Reactor Engine Ion Engine Power Core Neutrino Core Reactor Cold Fusion Reactor Propulsion Improved Medium Treads Treads Improved Medium Treads Leg Myomer Leg Utility Advanced Heat Sink Device Advanced Heat Sink Storage Cargo Storage Unit Processor Advanced Targeting Computer Protection Layered Medium Armor Plating Weapon Thermic Laser Energy Gun Thermic Laser Energy Cannon Phase Cannon Ballistic Gun Subdweller Machine Gun Ballistic Cannon Hypervelocity Mass Driver Launcher Gamma Bomb Array Build | -11 -10 -10 -9 -6 -6 -6 -6 -5 -5 -5 -5 -5 -5 -4 -3 -2 -1 ------- Run | Yrd Mat Sub Scr Fac Low Low Dat Pro Fac Ext Cet Arc Hub Fac Res Res Acc Slots Evolved 19 | . 1 . . 8 . . . . 2 . . . . 2 2 2 2 Power 1 | . . . . 1 . . . . . . . . . . . . . Propulsion 2 | . . . . . . . . . . . . . . 2 . . . Utility 12 | . 1 . . 5 . . . . 2 . . . . . 2 2 . Weapon 4 | . . . . 2 . . . . . . . . . . . . 2 Parts Attached 221 | 8 5 7 1 29 . 2 . . 12 5 11 2 14 16 21 73 15 Power 29 | 1 1 2 1 5 . 1 . . 4 . 1 . 1 1 3 6 2 Engine 6 | 1 1 2 1 . . . . . . . . . . . . 1 . Core 9 | . . . . 2 . 1 . . 4 . . . 1 . . . 1 Reactor 14 | . . . . 3 . . . . . . 1 . . 1 3 5 1 Propulsion 33 | 2 2 . . 2 . . . . 2 . 1 . . 3 6 15 . Treads 27 | 2 2 . . 2 . . . . 2 . 1 . . 3 6 9 . Leg 6 | . . . . . . . . . . . . . . . . 6 . Wheel . | . . . . . . . . . . . . . . . . . . Hover . | . . . . . . . . . . . . . . . . . . Flight . | . . . . . . . . . . . . . . . . . . Utility 89 | 3 2 1 . 13 . 1 . . 4 4 7 1 4 8 8 30 3 Device 65 | 1 . 1 . 9 . 1 . . 3 4 6 1 3 5 5 24 2 Storage 4 | . 1 . . 1 . . . . . . . . . 1 . 1 . Processor 8 | 1 . . . 1 . . . . . . . . . 1 1 3 1 Hackware . | . . . . . . . . . . . . . . . . . . Protection 12 | 1 1 . . 2 . . . . 1 . 1 . 1 1 2 2 . Artifact . | . . . . . . . . . . . . . . . . . . Weapon 70 | 2 . 4 . 9 . . . . 2 1 2 1 9 4 4 22 10 Energy Gun 30 | 2 . . . 4 . . . . 1 1 1 . 4 2 2 10 3 Energy Cannon 15 | . . . . 4 . . . . 1 . . . 2 1 1 3 3 Ballistic Gun 15 | . . 4 . 1 . . . . . . 1 1 1 . . 6 1 Ballistic Cannon 6 | . . . . . . . . . . . . . 2 1 . 2 1 Launcher 4 | . . . . . . . . . . . . . . . 1 1 2 Special Weapon . | . . . . . . . . . . . . . . . . . . Impact Weapon . | . . . . . . . . . . . . . . . . . . Slashing Weapon . | . . . . . . . . . . . . . . . . . . Piercing Weapon . | . . . . . . . . . . . . . . . . . . Special Melee Weapon . | . . . . . . . . . . . . . . . . . . Unidentified Prototypes 5 | . . . . 1 . . . . . . 2 . . 1 . 1 . Parts Lost 96 | . . 3 . 5 . 1 . . 1 1 1 . 20 4 . 41 19 Power 9 | . . . . 1 . . . . . . . . 3 1 . 2 2 Propulsion 9 | . . . . . . . . . . . . . 1 . . 8 . Utility 38 | . . 1 . 3 . . . . 1 1 . . 7 3 . 13 9 Weapon 40 | . . 2 . 1 . 1 . . . . 1 . 9 . . 18 8 Highest Loss Streak 9 | . . 2 . 3 . 1 . . 1 1 1 . 8 2 . 8 9 To Critical Strikes . | . . . . . . . . . . . . . . . . . . Average Backups 24 | 3 7 8 9 21 29 28 29 29 27 29 28 29 24 25 28 26 22 Power 4 | . 1 1 1 2 6 5 5 5 5 4 4 5 4 3 3 4 4 Propulsion 2 | . . . . 1 2 2 2 2 3 4 4 4 4 3 2 1 1 Utility 6 | 1 5 7 7 6 8 8 10 10 5 5 5 6 4 3 3 4 3 Weapon 12 | . 1 . . 9 13 12 12 12 13 15 14 14 11 14 19 16 12 Tool/Special . | . . . . . . . . . . . . . . . . . . Unused Backups 36 | . . . . 1 . . . . 7 1 . . 3 8 7 4 5 Power 3 | . . . . . . . . . 1 . . . . . . . 2 Propulsion 6 | . . . . . . . . . . 1 . . . 1 4 . . Utility 8 | . . . . 1 . . . . 2 . . . 1 1 2 1 . Weapon 19 | . . . . . . . . . 4 . . . 2 6 1 3 3 Tool/Special . | . . . . . . . . . . . . . . . . . . Average Slot Usage (%) 88 | . 100 99 87 91 93 92 93 93 86 83 84 88 79 84 85 83 70 Engine 1 | . 12 12 12 3 . . . . . . . . . . . . . Core 3 | . . . . . . 2 6 6 9 11 5 5 6 6 3 . 1 Reactor 5 | . . . . 7 12 9 6 6 1 . 4 5 3 2 5 7 4 Treads 11 | . 25 25 25 12 12 12 12 12 10 5 5 5 4 14 13 10 6 Device 22 | . . 3 . 20 25 25 25 25 26 27 28 33 26 18 25 31 25 Storage 6 | . 12 12 12 7 6 6 6 6 5 5 5 5 5 5 4 4 2 Processor 6 | . 12 12 12 6 6 6 6 6 5 5 5 5 5 8 6 7 7 Protection 6 | . 12 8 . 8 6 6 6 6 5 5 5 5 3 7 7 1 . Energy Gun 9 | . 25 11 . 8 6 6 6 6 9 11 15 16 10 10 9 9 5 Energy Cannon 9 | . . . . 11 18 17 18 18 12 11 4 . 5 5 4 1 4 Ballistic Gun 2 | . . 12 25 3 . . . . . . 1 5 2 2 . 3 4 Peak Build Rating 176 | 7 9 13 11 76 74 74 72 72 90 94 115 116 117 123 150 170 176 Average Rating 88 | 5 8 10 10 58 74 71 72 72 83 91 104 115 98 113 142 150 143 On Entrance 73 | . 7 9 13 10 74 74 72 72 72 90 94 115 116 85 123 150 149 Avg Prop Armor Cover (%) 8 | . . . . . . . . . . . . . . . . 8 . Naked Turns 111 | . . . . . . . . . . . . . . . . . 111 Heaviest Build 249 | 9 22 25 23 210 204 204 196 196 218 220 220 213 221 230 246 249 226 Greatest Support 140 | 40 40 40 40 50 50 50 50 50 70 70 80 80 80 132 140 140 120 Greatest Overweight (x) 71 | . . . . 4 4 4 3 3 3 3 3 2 71 1 2 8 1 Average Overweight (x) 2 | . . . . 3 4 3 3 3 3 3 2 2 2 1 1 1 . Largest Inventory Capacity 30 | 5 10 10 10 30 30 30 30 30 30 30 30 30 30 30 30 30 30 Average Capacity 28 | 5 10 10 10 29 30 30 30 30 30 30 30 30 30 30 30 30 27 Most Carried 30 | 5 10 10 10 30 29 30 29 29 30 30 30 30 30 30 30 30 30 Average Carried 25 | 3 7 9 10 21 29 28 29 29 28 29 29 30 24 25 29 27 24 Final Capacity 30 | 5 10 10 10 30 30 30 30 30 30 30 30 30 30 30 30 30 5 Final Carried 30 | 5 10 10 10 29 29 29 29 29 28 30 30 30 19 30 30 29 . Class Distribution -------------------- 52% | Hauler-Gunner 14% | Hauler-Tank 13% | Scavenger-Tank 8% | Hacker-Mutant 6% | Scavenger-Gunner 3% | Scavenger-Executioner Dominant Class ---------------- Hacker-Mutant | -10/Materials Hacker-Mutant | -10/Subcaves Hacker-Mutant | -9/Scraptown Hauler-Gunner | -6/Factory Hauler-Gunner | -6/Lower Caves Hauler-Gunner | -6/Lower Caves Hauler-Gunner | -6/Data Miner Hauler-Gunner | -5/Proximity Caves Hauler-Gunner | -5/Factory Hauler-Tank | -5/Extension Scavenger-Tank | -5/Cetus Scavenger-Tank | -5/Archives Scavenger-Tank | -5/Hub_04(d) Scavenger-Tank | -4/Factory Hauler-Tank | -3/Research Scavenger-Gunner | -2/Research Scavenger-Executioner | -1/Access Resources | -11 -10 -10 -9 -6 -6 -6 -6 -5 -5 -5 -5 -5 -5 -4 -3 -2 -1 ----------- Run | Yrd Mat Sub Scr Fac Low Low Dat Pro Fac Ext Cet Arc Hub Fac Res Res Acc Matter Collected 6516 | 204 126 114 . 612 114 59 . 66 267 100 134 56 896 526 485 1698 1059 Remotely 220 | . . . . . . . . . . . . . . . . 220 . Salvage Created 21200 | . 1046 252 . 2909 49 368 . . 753 892 . 384 2649 1672 1673 5407 3146 Parts 895 | . 70 17 . 104 4 18 . . 27 33 . 14 94 76 47 269 122 Haulers Intercepted 1 | . . . . . . . . . . . . . . . . 1 . Recyclers Shooed 8 | . 1 . . 1 . . . . 1 . . . . . . 2 3 Parts Field Recycled . | . . . . . . . . . . . . . . . . . . Retrieved Matter . | . . . . . . . . . . . . . . . . . . Parts Self-Destructed . | . . . . . . . . . . . . . . . . . . Prevented . | . . . . . . . . . . . . . . . . . . Parts Restored . | . . . . . . . . . . . . . . . . . . Kills | -11 -10 -10 -9 -6 -6 -6 -6 -5 -5 -5 -5 -5 -5 -4 -3 -2 -1 ------- Run | Yrd Mat Sub Scr Fac Low Low Dat Pro Fac Ext Cet Arc Hub Fac Res Res Acc Combat Hostiles Destroyed 275 | . 18 6 . 48 2 5 . . 12 12 . 4 35 21 20 58 34 Melee 2 | . . . . . . . . . . . . . . . 1 1 . Guns 126 | . 13 5 . 17 . . . . 6 4 . 4 15 12 4 40 6 Cannons 87 | . . . . 19 2 5 . . 5 5 . . 17 7 8 7 12 AOE 27 | . 5 1 . 6 . . . . . . . . . 2 4 3 6 Classes Destroyed 20 | . 6 1 . 6 . 1 . . . 1 . . 2 . 2 1 . Worker 22 | . 6 . . 3 . . . . . . . . 4 2 1 2 4 Builder 17 | . 2 . . 1 . . . . . 1 . . . . . 4 9 Tunneler 3 | . 1 . . 1 . . . . . . . . . . . . 1 Hauler 1 | . . . . . . . . . . . . . . . . 1 . Recycler 7 | . . . . 2 . . . . . 1 . . 3 . . . 1 Mechanic 3 | . . . . 1 . . . . . . . . . . . 1 1 Operator 5 | . . . . . . . . . . . . . 3 2 . . . Watcher 25 | . 3 . . 2 . . . . 1 2 . . 3 1 2 6 5 Swarmer 19 | . 2 . . 7 2 . . . . 4 . . . . . . 4 Grunt 106 | . 16 . . 22 . 3 . . 7 . . . 18 8 6 18 8 Brawler 7 | . . . . 2 . . . . . . . . . . 2 2 1 Duelist 2 | . . . . . . . . . . 1 . . . . . 1 . Protector 1 | . . . . . . . . . . . . . 1 . . . . Sentry 28 | . . . . 2 . . . . 1 5 . 4 7 4 1 4 . Hunter 36 | . . . . 3 . . . . . . . . . 3 4 11 15 Programmer 59 | . . . . 12 . 1 . . 4 . . . 6 6 2 22 6 Behemoth 3 | . . . . . . 1 . . . 2 . . . . . . . Lightning 3 | . . . . . . . . . . . . . 3 . . . . Striker 3 | . . . . . . . . . . . . . . . 3 . . Executioner 3 | . . . . . . . . . . . . . . . 3 . . Subdweller 6 | . . 6 . . . . . . . . . . . . . . . Best Kill Streak 12 | . 5 3 . 8 2 2 . . 7 5 . 4 8 8 6 7 12 Combat Bots Only 10 | . 3 3 . 6 2 2 . . 7 5 . 4 7 8 6 5 10 Max Kills in Single Turn 4 | . 2 1 . 2 1 1 . . 1 1 . 1 2 2 4 2 3 Gunslinging . | . . . . . . . . . . . . . . . . . . Exploded 3 | . 1 1 . 2 . . . . . . . . . 2 3 1 2 Melee 1 | . . . . . . . . . . . . . . . 1 1 . Uniques/NPCs Destroyed . | . . . . . . . . . . . . . . . . . . Combat | -11 -10 -10 -9 -6 -6 -6 -6 -5 -5 -5 -5 -5 -5 -4 -3 -2 -1 -------- Run | Yrd Mat Sub Scr Fac Low Low Dat Pro Fac Ext Cet Arc Hub Fac Res Res Acc Hostile Shots Fired 2269 | . 36 34 . 199 9 47 . . 62 51 21 19 239 153 81 747 571 Missed 706 | . 6 8 . 74 3 16 . . 17 20 8 6 64 44 31 194 215 Intercepted 1 | . . . . . . . . . . . . . . . 1 . . Hits 1563 | . 30 26 . 125 6 31 . . 45 31 13 13 175 109 50 553 356 Melee 10 | . . . . . . 2 . . . . . . . . . 6 2 Projectile 1553 | . 30 26 . 125 6 29 . . 45 31 13 13 175 109 50 547 354 AOE 10 | . . 1 . . . . . . 2 . . . . 5 1 1 . Critical Strikes 88 | . . 1 . 7 . 3 . . 2 2 . . 18 3 4 34 14 Actively Blocked 3 | . . . . 3 . . . . . . . . . . . . . Part Disruptions 16 | . . . . . . . . . 1 . . . 2 . . 12 1 Actively Blocked 2 | . . . . . . . . . . . . . . . . 2 . Damage Taken 22490 | . 269 399 . 1248 57 421 . . 663 446 152 218 3412 1223 842 8494 4646 Core 3156 | . 56 98 . 109 . 75 . . 48 . 7 69 270 83 70 618 1653 Absorbed by Shields 109 | . . . . . . . . . . 31 78 . . . . . . Redirected to Shielding 99 | . 8 . . 91 . . . . . . . . . . . . . Ignored by Resistances 13743 | . 166 236 . 756 37 245 . . 388 281 135 128 1953 837 487 4987 3107 Regen/Repaired (Parts) 280 | . . . . . . . . . 32 . . . . . 248 . . Core Remaining (%) 74 | 100 . . 38 . . . . 78 . . . . 60 92 94 57 . Volleys Fired 672 | . 54 31 . 77 2 21 . . 22 29 4 9 96 54 39 167 67 Largest 6 | . 2 2 . 4 4 4 . . 4 4 4 4 4 4 4 4 6 Hottest 492 | . 80 80 . 345 320 299 . . 341 341 337 255 317 313 351 357 492 Shots Fired 2361 | . 108 60 . 298 10 84 . 3 86 104 14 36 353 212 136 567 290 Gun 1500 | . 108 60 . 133 2 22 . . 38 48 8 36 210 144 72 455 164 Cannon 832 | . . . . 165 8 62 . 3 48 56 6 . 143 68 60 106 107 Launcher 29 | . . . . . . . . . . . . . . . 4 6 19 Special . | . . . . . . . . . . . . . . . . . . Kinetic 483 | . . 32 . 23 . . . . . . . 9 98 54 24 162 81 Thermal 1156 | . . . . 242 10 64 . 3 82 104 12 18 157 106 72 204 82 Explosive 10 | . . . . . . . . . . . . . . . . . 10 Electromagnetic 712 | . 108 28 . 33 . 20 . . 4 . 2 9 98 52 40 201 117 Robot Hit Streak 81 | . 28 16 . 43 28 42 . 20 33 30 20 47 81 48 40 56 42 Robot Miss Streak 8 | . 1 1 . 2 . 1 . . 1 1 . . 8 1 2 3 3 Penetration Max 2 | . . . . . . . . . . . . 1 1 1 1 2 1 Secondary Targets 11 | . 2 1 . . . . . . . . . 1 . . . 7 . Max Gunslinging Chain 1 | . 1 1 . . . . . . . . . 1 . . . 1 . Capacitor 6 | . . . . . . . . . . . . . . . . 6 . Shots Hit Robots 1816 | . 86 42 . 208 4 71 . 1 56 74 14 27 270 154 117 484 208 Core Hits 817 | . 41 9 . 91 2 13 . . 25 27 5 13 140 63 64 198 126 Critical Kills 24 | . . 2 . . . . . . . 2 . 1 1 2 4 10 2 Critical Parts Destroyed 43 | . . . . . . . . . . . . 1 . 5 10 25 2 Critical Strikes 161 | . 2 2 . 20 . 2 . . 5 8 . 2 9 11 17 59 24 Burn 53 | . . . . 20 . 1 . . 5 6 . . 6 4 2 8 1 Meltdown 3 | . . . . . . . . . . 2 . . . . . . 1 Destroy 67 | . . 2 . . . . . . . . . 2 2 7 15 36 3 Blast 5 | . . . . . . . . . . . . . . . . . 5 Corrupt 33 | . 2 . . . . 1 . . . . . . 1 . . 15 14 Melee Attacks . | . . . . . . . . . . . . . . . . . . Impact . | . . . . . . . . . . . . . . . . . . Slashing . | . . . . . . . . . . . . . . . . . . Piercing . | . . . . . . . . . . . . . . . . . . Sneak Attacks . | . . . . . . . . . . . . . . . . . . Combat Hostiles . | . . . . . . . . . . . . . . . . . . Follow-up Attacks . | . . . . . . . . . . . . . . . . . . Damage Inflicted 54952 | . 1564 431 . 6674 82 1630 . 24 1626 2703 437 723 7309 4246 5484 13142 8877 Guns 28953 | . 1170 357 . 2362 36 355 . . 837 995 219 723 3771 2603 2075 10232 3218 Cannons 18900 | . . . . 3277 46 1275 . 24 789 1708 218 . 3345 1338 1711 2192 2977 Explosions 7023 | . 394 74 . 1035 . . . . . . . . 173 305 1686 688 2668 Melee . | . . . . . . . . . . . . . . . . . . Ramming 76 | . . . . . . . . . . . . . 20 . 12 30 14 Kinetic 9577 | . . 313 . 369 . . . . . . . 170 1960 775 427 3893 1670 Thermal 28648 | . 394 74 . 5334 82 1271 . 24 1537 2703 386 387 3594 2393 2988 5261 2220 Explosive 1701 | . . . . 288 . . . . . . . . . . . 41 1372 Electromagnetic 14950 | . 1170 44 . 683 . 359 . . 89 . 51 166 1735 1078 2057 3917 3601 Impact . | . . . . . . . . . . . . . . . . . . Slashing . | . . . . . . . . . . . . . . . . . . Piercing . | . . . . . . . . . . . . . . . . . . Highest Corruption 31 | . . . . 4 4 4 4 4 1 1 1 1 31 2 . 28 7 Average Corruption 6 | . . . . 2 4 4 4 4 1 1 1 1 13 1 . 21 4 Corruption Purged . | . . . . . . . . . . . . . . . . . . Corruption Blocked . | . . . . . . . . . . . . . . . . . . Effects 443 | . . . . 46 56 30 6 46 2 15 4 5 71 15 . 124 23 Message Errors 98 | . . . . 10 13 9 1 10 . 7 . 1 10 4 . 28 5 Matter Fused 103 | . . . . 17 13 4 1 10 2 3 2 2 14 3 . 28 4 Heat Flow Errors 42 | . . . . 2 8 3 1 6 . 2 . . 5 2 . 9 4 Energy Discharges 51 | . . . . 7 7 2 1 10 . 1 2 . 7 3 . 9 2 Parts Rejected 4 | . . . . . . . . . . . . . 1 . . 3 . Parts Fused 4 | . . . . 1 1 1 . . . 1 . . . . . . . Data Loss (minor) 47 | . . . . 3 9 5 2 5 . . . 1 7 1 . 12 2 Data Loss (major) 22 | . . . . 5 2 2 . 1 . 1 . 1 3 2 . 4 1 Misfires 21 | . . . . 1 2 3 . 3 . . . . 4 . . 8 . Alerts 8 | . . . . . 1 1 . 1 . . . . 1 . . 2 2 Misdirections 7 | . . . . . . . . . . . . . 7 . . . . Weapon Failures 36 | . . . . . . . . . . . . . 12 . . 21 3 Overload Shots . | . . . . . . . . . . . . . . . . . . Overflow Damage 653 | . 10 . . 243 . 43 . . 2 36 . . 77 8 100 29 105 Projectiles 421 | . . . . 125 . 43 . . 2 36 . . 72 8 57 29 49 Explosions 227 | . 10 . . 118 . . . . . . . . . . 43 . 56 Melee 5 | . . . . . . . . . . . . . 5 . . . . Knockbacks 43 | . . . . . . . . . . . . . 24 5 3 5 6 Impact . | . . . . . . . . . . . . . . . . . . Kinetic 43 | . . . . . . . . . . . . . 24 5 3 5 6 Secondary . | . . . . . . . . . . . . . . . . . . Self-Inflicted Damage 496 | . 49 27 . 54 . . . . . . . . 105 74 7 132 48 Shots 31 | . 3 1 . 1 . . . . . . . . 2 1 1 15 7 Rammed 6 | . . . . . . . . . . . . . 1 . 1 2 2 Targets Rammed 8 | . . . . . . . . . . . . . 1 . 2 3 2 Kicked 1 | . . . . . . . . . . . . . . . . 1 . Crushed 1 | . . . . . . . . . . . . . . . 1 . . Highest Temperature 523 | . 150 11 . 523 153 336 70 213 513 428 73 . 196 447 277 194 191 Average Temperature 101 | . 46 7 . 118 69 120 70 80 199 145 41 . 55 143 107 71 72 Received Heat Transfer 4615 | . 177 114 . 441 . 544 . . 207 117 33 54 567 288 123 1653 297 Effects 25 | . . . . 4 . 2 . . 10 3 . . . 6 . . . Shutdowns 5 | . . . . 1 . . . . 2 1 . . . 1 . . . Energy Bleed 5 | . . . . 1 . 2 . . 1 1 . . . . . . . Interference 6 | . . . . . . . . . 3 1 . . . 2 . . . Matter Decay 5 | . . . . 2 . . . . 2 . . . . 1 . . . Short Circuit 2 | . . . . . . . . . 1 . . . . 1 . . . Damage (minor) 2 | . . . . . . . . . 1 . . . . 1 . . . Siege Activations . | . . . . . . . . . . . . . . . . . . Martial Activations . | . . . . . . . . . . . . . . . . . . Shielding Activations . | . . . . . . . . . . . . . . . . . . Robots Disrupted 4 | . . . . . . . . . . . . . . 1 . 2 1 Combat Hostiles 4 | . . . . . . . . . . . . . . 1 . 2 1 Robots Corrupted 23 | . . . . . . . . . . . . . 3 . 4 7 9 Combat Hostiles 19 | . . . . . . . . . . . . . 2 . 3 6 8 Parts Fried 81 | . 3 . . 2 . . . . . . . . 20 5 8 22 21 Impact Corruptions 1 | . . . . . . . . . . . . . 1 . . . . Robots Melted 14 | . . . . 6 . . . . 1 3 . . 1 . . 1 2 Combat Hostiles 14 | . . . . 6 . . . . 1 3 . . 1 . . 1 2 Parts Melted 126 | . . . . 42 . 4 . . 9 16 . 1 10 10 5 23 6 Heat Transferred 43371 | . 400 50 . 10316 174 2271 . 37 2797 4328 470 481 5045 3493 3382 7450 2677 Parts Sabotaged . | . . . . . . . . . . . . . . . . . . Parts Stolen 1 | . . . . . . 1 . . . . . . . . . . . Parts Stripped . | . . . . . . . . . . . . . . . . . . Power Chain Reactions 22 | . 7 1 . 1 . . . . . . . . 3 . 5 1 4 Alert | -11 -10 -10 -9 -6 -6 -6 -6 -5 -5 -5 -5 -5 -5 -4 -3 -2 -1 ------- Run | Yrd Mat Sub Scr Fac Low Low Dat Pro Fac Ext Cet Arc Hub Fac Res Res Acc Maximum Alert Level 2 | . . . . 1 . . . . . . . . . 1 . 1 2 Low Security (%) 95 | 100 100 . . 99 . . . . 100 100 100 100 100 93 100 96 46 Level 1 3 | . . . . . . . . . . . . . . 6 . 3 36 Level 2 1 | . . . . . . . . . . . . . . . . . 17 Level 3 . | . . . . . . . . . . . . . . . . . . Level 4 . | . . . . . . . . . . . . . . . . . . Level 5 . | . . . . . . . . . . . . . . . . . . High Security . | . . . . . . . . . . . . . . . . . . Max Security . | . . . . . . . . . . . . . . . . . . Peak Influence 515 | . 81 . . 195 . . . . 159 115 136 59 187 288 169 242 515 Initial 29 | . . . . . . . . . . . 20 29 . 22 . 13 . Average 40 | . 21 . . 21 . . . . 17 13 38 6 44 55 14 52 201 Influence Increases 9967 | . 650 . . 1717 65 175 . . 359 482 658 104 1162 798 703 1734 1360 Destroy 0b10 Robot/C 5840 | . 360 . . 960 40 100 . . 240 300 420 80 680 420 400 1160 680 Destroy 0b10 Robot/NC 440 | . 60 . . 50 . . . . 5 30 10 . 70 25 15 70 105 Destroy Leader 1294 | . 86 . . 264 10 30 . . 52 46 40 . 166 82 104 264 150 Allied During Kill 164 | . . . . . . . . . . 20 127 10 2 . 4 1 . Successful Hack 292 | . 21 . . 105 . . . . . 4 7 . 12 28 68 26 21 Select Force Hacks 60 | . 30 . . . . . . . 30 . . . . . . . . Disable Machine 188 | . 8 . . 80 . . . . . . 4 8 36 32 . 12 8 Anti-Garrison Action 150 | . . . . . . . . . . . . . . . . . 150 Destroy Structure 969 | . 25 . . 168 . . . . 32 22 50 6 196 136 52 141 141 Partial Spotted 45 | . . . . . . . . . . . . . . . 15 15 15 Lose Combat Pursuer 525 | . 60 . . 90 15 45 . . . 60 . . . 75 45 45 90 Influence Decreases 9534 | . 650 . . 1717 65 175 . . 359 433 601 210 1099 861 672 1765 927 Entered New Map 165 | . . . . . . . . . . . 29 77 . 41 . 18 . Time Decay 8488 | . 650 . . 1667 65 175 . . 357 403 539 93 963 790 652 1397 737 Lost Part 728 | . . . . 50 . . . . 2 10 . . 116 30 . 330 190 Lost Ally 153 | . . . . . . . . . . 20 33 40 20 . 20 20 . Squads Dispatched 86 | . 6 . . 17 . . . . 5 1 2 . 9 9 8 19 10 Investigation 31 | . 6 . . 6 . . . . 3 . 2 . 4 3 4 2 1 Extermination 29 | . . . . 10 . . . . 2 . . . 3 3 . 8 3 Reinforcement 15 | . . . . 1 . . . . . 1 . . 2 1 4 4 2 Assault 2 | . . . . . . . . . . . . . . 1 . . 1 Garrison 9 | . . . . . . . . . . . . . . 1 . 5 3 Intercept . | . . . . . . . . . . . . . . . . . . Searches Triggered . | . . . . . . . . . . . . . . . . . . Data Miner Redirects 4 | . . . . . . . . . 1 . . . . 1 . . 2 Construction Impeded 7 | . . . . . . . . . . . . . . 1 . 4 2 Haulers Reinforced 1 | . . . . . . . . . . . . . . . 1 . . Active Scanning Responses . | . . . . . . . . . . . . . . . . . . Cargo Convoy Interrupts . | . . . . . . . . . . . . . . . . . . Stealth | -11 -10 -10 -9 -6 -6 -6 -6 -5 -5 -5 -5 -5 -5 -4 -3 -2 -1 --------- Run | Yrd Mat Sub Scr Fac Low Low Dat Pro Fac Ext Cet Arc Hub Fac Res Res Acc Distress Signals 19 | . 2 . . 1 . . . . . 1 2 . 5 1 3 2 2 Communications Jammed . | . . . . . . . . . . . . . . . . . . Distress Signals . | . . . . . . . . . . . . . . . . . . Times Spotted 402 | . 26 6 . 50 3 8 . . 12 23 20 6 45 30 32 74 67 Peak Tracking Total 11 | . 4 2 . 6 3 3 . . 4 5 5 3 7 7 6 6 11 Tactical Retreats 28 | . 3 . . 5 1 3 . . . 3 . . . 4 2 3 4 Traps | -11 -10 -10 -9 -6 -6 -6 -6 -5 -5 -5 -5 -5 -5 -4 -3 -2 -1 ------- Run | Yrd Mat Sub Scr Fac Low Low Dat Pro Fac Ext Cet Arc Hub Fac Res Res Acc Traps Triggered 13 | . 2 . . 3 . . . . 2 4 . . 1 . . . 1 Indirectly . | . . . . . . . . . . . . . . . . . . Trap Hack Attempts . | . . . . . . . . . . . . . . . . . . Triggered . | . . . . . . . . . . . . . . . . . . Disarmed . | . . . . . . . . . . . . . . . . . . Reprogrammed 2 | . 2 . . . . . . . . . . . . . . . . Reused . | . . . . . . . . . . . . . . . . . . Traps Extracted . | . . . . . . . . . . . . . . . . . . Installed . | . . . . . . . . . . . . . . . . . . Triggered . | . . . . . . . . . . . . . . . . . . Objects Rigged 28 | . 2 . . 24 . . . . . . . . . . . 2 . Exploded 5 | . . . . 5 . . . . . . . . . . . . . Machines | -11 -10 -10 -9 -6 -6 -6 -6 -5 -5 -5 -5 -5 -5 -4 -3 -2 -1 ---------- Run | Yrd Mat Sub Scr Fac Low Low Dat Pro Fac Ext Cet Arc Hub Fac Res Res Acc Machines Disabled 50 | . 2 . . 20 . . . . . . 3 2 9 8 . 3 3 Max in Single Turn 6 | . 1 . . 6 . . . . . . . 1 2 5 . 1 1 Garrison Access 3 | . . . . . . . . . . . . . . 1 1 . 1 Network Hub 1 | . . . . . . . . . . . . . 1 . . . . Energy Cycler 1 | . . . . . . . . . . . . . . . . . 1 Machines Repaired . | . . . . . . . . . . . . . . . . . . Machines Dismantled . | . . . . . . . . . . . . . . . . . . Machines Sabotaged . | . . . . . . . . . . . . . . . . . . Overloaded Fab Kills . | . . . . . . . . . . . . . . . . . . Hacking | -11 -10 -10 -9 -6 -6 -6 -6 -5 -5 -5 -5 -5 -5 -4 -3 -2 -1 --------- Run | Yrd Mat Sub Scr Fac Low Low Dat Pro Fac Ext Cet Arc Hub Fac Res Res Acc Machines Accessed 57 | . 10 . . 9 . . 4 . 4 2 3 1 5 7 7 3 2 Terminals 34 | . 7 . . 8 . . . . 2 2 3 . 5 3 . 3 1 Fabricators 4 | . . . . . . . . . . . . . . 1 3 . . Repair Stations 3 | . 1 . . . . . . . 1 . . . . . 1 . . Recycling Units 4 | . 2 . . . . . . . 1 . . . . 1 . . . Scanalyzers 4 | . . . . 1 . . . . . . . . . 1 2 . . Garrison Access 3 | . . . . . . . . . . . . . . 1 1 . 1 Total Hacks 200 | . 29 . . 29 . . 26 . 6 4 7 25 19 19 19 11 6 Successful 127 | . 18 . . 19 . . 26 . 4 1 5 25 6 9 10 2 2 Failed 73 | . 11 . . 10 . . . . 2 3 2 . 13 10 9 9 4 Catastrophic 18 | . 1 . . 2 . . . . 2 . 1 . 3 3 2 3 1 Database Lockouts . | . . . . . . . . . . . . . . . . . . Manual 49 | . 16 . . 11 . . . . 5 1 1 2 2 1 1 9 . Terminals 100 | . 25 . . 22 . . . . 3 4 7 . 19 7 . 11 2 Fabricators 16 | . . . . . . . . . . . . . . 5 11 . . Repair Stations 4 | . 2 . . . . . . . 1 . . . . . 1 . . Recycling Units 5 | . 2 . . . . . . . 2 . . . . 1 . . . Scanalyzers 12 | . . . . 7 . . . . . . . . . 3 2 . . Garrison Access 12 | . . . . . . . . . . . . . . 3 5 . 4 Terminal Hacks 88 | . 12 . . 6 . . 26 . 1 1 5 25 6 4 . . 2 Record 43 | . . . . 1 . . 11 . . . 4 25 . 1 . . 1 Part Schematic 13 | . . . . 1 . . 8 . . 1 . . 2 1 . . . Robot Schematic 4 | . . . . . . . 4 . . . . . . . . . . Robot Analysis 7 | . 4 . . 1 . . . . . . . . 1 1 . . . Prototype ID Bank 6 | . 1 . . . . . 3 . . . . . 2 . . . . Open Door 2 | . . . . . . . . . 1 . 1 . . . . . . Level Access Points 2 | . . . . . . . . . . . . . . 1 . . 1 Branch Access Points 1 | . . . . 1 . . . . . . . . . . . . . Locate Traps 1 | . 1 . . . . . . . . . . . . . . . . Reprogram Traps 4 | . 4 . . . . . . . . . . . . . . . . Dispatch Records 1 | . 1 . . . . . . . . . . . . . . . . Registered Prototypes 1 | . . . . 1 . . . . . . . . . . . . . Zone Layout 3 | . 1 . . 1 . . . . . . . . 1 . . . . Fabricator Hacks 7 | . . . . . . . . . . . . . . 1 6 . . Load Schematic 4 | . . . . . . . . . . . . . . 1 3 . . Build 3 | . . . . . . . . . . . . . . . 3 . . Repair Station Hacks . | . . . . . . . . . . . . . . . . . . Recycling Unit Hacks 2 | . 1 . . . . . . . . . . . . 1 . . . Report Inventory 2 | . 1 . . . . . . . . . . . . 1 . . . Scanalyzer 12 | . . . . 7 . . . . . . . . . 3 2 . . Insert Component 5 | . . . . 2 . . . . . . . . . 1 2 . . Analyze 3 | . . . . 2 . . . . . . . . . 1 . . . Retrieve Study 4 | . . . . 3 . . . . . . . . . 1 . . . Garrison Access Hacks 1 | . . . . . . . . . . . . . . . 1 . . Seal Access 1 | . . . . . . . . . . . . . . . 1 . . Unauthorized Hacks 16 | . 5 . . 6 . . . . 2 . . . . . 1 2 . Terminals 10 | . 2 . . 6 . . . . . . . . . . . 2 . Detonate 6 | . 1 . . 4 . . . . . . . . . . . 1 . Disrupt 4 | . 1 . . 2 . . . . . . . . . . . 1 . Fabricators . | . . . . . . . . . . . . . . . . . . Repair Stations 4 | . 2 . . . . . . . 1 . . . . . 1 . . Mechanics 1 | . 1 . . . . . . . . . . . . . . . . Patch 3 | . 1 . . . . . . . 1 . . . . . 1 . . Recycling Units 2 | . 1 . . . . . . . 1 . . . . . . . . Tunnel 2 | . 1 . . . . . . . 1 . . . . . . . . Scanalyzers . | . . . . . . . . . . . . . . . . . . Garrison Access . | . . . . . . . . . . . . . . . . . . Data Cores Recovered 2 | . . . . . . . . . . 1 . . . 1 . . . Used 2 | . . . . . . . . . . 1 . . . 1 . . . Hacking Detections 38 | . 7 . . 7 . . . . 1 2 3 . 4 5 4 3 2 Full Trace Events 26 | . 7 . . 5 . . . . 1 . 2 . 4 3 2 1 1 Feedback Events . | . . . . . . . . . . . . . . . . . . Feedback Blocked . | . . . . . . . . . . . . . . . . . . Robot Schematics Acquired 4 | . . . . . . . 4 . . . . . . . . . . Robots Built 8 | . . . . . . . . . . . . . . . 8 . . Authchips . | . . . . . . . . . . . . . . . . . . Time 173 | . . . . . . . . . . . . . . . 173 . . Total Robot Build Rating 40 | . . . . . . . . . . . . . . . 40 . . Part Schematics Acquired 16 | . . . . 3 . . 8 . . 1 . . 2 2 . . . Parts Built . | . . . . . . . . . . . . . . . . . . Authchips . | . . . . . . . . . . . . . . . . . . Time . | . . . . . . . . . . . . . . . . . . Total Part Build Rating . | . . . . . . . . . . . . . . . . . . Part Studies Acquired 4 | . . . . 3 . . . . . . . . . 1 . . . Parts Repaired . | . . . . . . . . . . . . . . . . . . Time . | . . . . . . . . . . . . . . . . . . Parts Recycled . | . . . . . . . . . . . . . . . . . . Recycled Matter . | . . . . . . . . . . . . . . . . . . Retrieved Matter . | . . . . . . . . . . . . . . . . . . Retrieved Components . | . . . . . . . . . . . . . . . . . . Parts Scanalyzed 3 | . . . . 2 . . . . . . . . . 1 . . . Part Schematics Acquired 3 | . . . . 2 . . . . . . . . . 1 . . . Parts Damaged 1 | . . . . 1 . . . . . . . . . . . . . Bothacking | -11 -10 -10 -9 -6 -6 -6 -6 -5 -5 -5 -5 -5 -5 -4 -3 -2 -1 ------------ Run | Yrd Mat Sub Scr Fac Low Low Dat Pro Fac Ext Cet Arc Hub Fac Res Res Acc Used RIF Installer . | . . . . . . . . . . . . . . . . . . Robots Hacked . | . . . . . . . . . . . . . . . . . . Non-combat . | . . . . . . . . . . . . . . . . . . Combat . | . . . . . . . . . . . . . . . . . . Robot Hacks Applied . | . . . . . . . . . . . . . . . . . . Relay Couplers Released 7 | . . . . 4 . . . . . . . . . 2 . . 1 Machine Destruction 3 | . . . . . . . . . . . . . . 2 . . 1 Programmers 4 | . . . . 4 . . . . . . . . . . . . . Fabnet Peak Effective % . | . . . . . . . . . . . . . . . . . . Robots Rewired . | . . . . . . . . . . . . . . . . . . Allies Hacked . | . . . . . . . . . . . . . . . . . . Hacks Repelled . | . . . . . . . . . . . . . . . . . . Allies | -11 -10 -10 -9 -6 -6 -6 -6 -5 -5 -5 -5 -5 -5 -4 -3 -2 -1 -------- Run | Yrd Mat Sub Scr Fac Low Low Dat Pro Fac Ext Cet Arc Hub Fac Res Res Acc Total Allies 20 | . . . . . . . . . . 7 5 . . . 8 . . Largest Group 10 | . . . . . . . . . . 6 10 5 1 . 3 3 . Highest-Rated Group 751 | . . . . . . . . . . 304 751 469 89 . 90 90 . Highest-Rated Ally 159 | . . . . . . . . . . 159 159 159 89 . 30 30 . Total Orders 1 | . . . . . . . . . . . . . . . 1 . . ROAM 1 | . . . . . . . . . . . . . . . 1 . . Ally Attacks 162 | . . . . . . . . . . 30 117 9 . . 4 2 . Total Damage 4235 | . . . . . . . . . . 593 3279 257 . . 45 61 . Kills 28 | . . . . . . . . . . 5 23 . . . . . . Allies Corrupted 1 | . . . . . . . . . . . . . . . 1 . . Allies Melted 1 | . . . . . . . . . . . . . . . . 1 . Intel | -11 -10 -10 -9 -6 -6 -6 -6 -5 -5 -5 -5 -5 -5 -4 -3 -2 -1 ------- Run | Yrd Mat Sub Scr Fac Low Low Dat Pro Fac Ext Cet Arc Hub Fac Res Res Acc Active Infowar (turns) 10382 | 26 . 139 . 1608 3233 1344 280 2333 30 . . . 89 637 . . 663 Optics 139 | . . 139 . . . . . . . . . . . . . . . Sensors 1307 | 26 . . . 1281 . . . . . . . . . . . . . IFF 7547 | . . . . 327 3233 1344 280 2333 30 . . . . . . . . Terrain 726 | . . . . . . . . . . . . . 89 637 . . . Machine Analysis 663 | . . . . . . . . . . . . . . . . . 663 Robot Analysis Total 7 | . 4 . . 1 . . . . . . . . 1 1 . . . Derelict Logs Recovered 6 | . . 2 . . 3 1 . . . . . . . . . . . Drone Launches . | . . . . . . . . . . . . . . . . . . Drone Recoveries . | . . . . . . . . . . . . . . . . . . Exploration | -11 -10 -10 -9 -6 -6 -6 -6 -5 -5 -5 -5 -5 -5 -4 -3 -2 -1 ------------- Run | Yrd Mat Sub Scr Fac Low Low Dat Pro Fac Ext Cet Arc Hub Fac Res Res Acc Turns Passed 29588 | 65 1331 832 313 5269 3233 1344 280 2333 1391 1413 862 546 1944 1959 2372 2802 1299 Spaces Moved 8736 | 35 614 455 194 1128 796 330 82 677 318 322 244 161 461 691 912 763 553 Core 215 | 6 . . . . . . . . . . . . 1 . . . 208 Treads 8387 | 29 614 455 194 1128 796 330 82 677 318 322 244 161 460 691 912 629 345 Legs 134 | . . . . . . . . . . . . . . . . 134 . Wheels . | . . . . . . . . . . . . . . . . . . Hover . | . . . . . . . . . . . . . . . . . . Flight . | . . . . . . . . . . . . . . . . . . Fastest Speed 50 | 50 160 160 160 160 405 345 345 345 345 400 320 320 320 243 225 193 50 Average Speed 300 | 141 160 160 160 433 405 379 345 345 398 400 326 320 327 243 236 267 174 Slowest Speed 3600 | 160 160 160 160 485 405 405 345 345 400 400 400 320 3600 243 310 705 250 Overloaded Moves . | . . . . . . . . . . . . . . . . . . Propulsion Burnouts . | . . . . . . . . . . . . . . . . . . Robots Hopped 1 | . . . . . . . . . . 1 . . . . . . . Potential Cave-ins . | . . . . . . . . . . . . . . . . . . Cave-ins Triggered . | . . . . . . . . . . . . . . . . . . Exploration Rate (%) 48 | 3 96 37 26 32 88 64 71 87 6 64 83 90 54 17 28 18 13 Regions Visited 17 Branch Regions 10 Pre-discovered Areas 3 | . 1 . . . . . 1 . 1 . . . . . . . . Known Exits Taken 16 | 1 1 . 1 1 1 1 1 1 1 1 1 1 1 1 1 1 . Unknown Exits Taken 1 | . . 1 . . . . . . . . . . . . . . . Scrap Searched 14 | . . 3 1 . 3 4 . 3 . . . . . . . . . Spaces Dug 9 | . . . . 1 . . . . 7 . . 1 . . . . . Terrain Destroyed 668 | . 23 6 . 164 4 4 . 1 21 8 . 2 209 101 37 38 50 Melee . | . . . . . . . . . . . . . . . . . . Projectile 147 | . . . . 22 4 4 . 1 21 8 . 2 23 23 . 22 17 AOE 521 | . 23 6 . 142 . . . . . . . . 186 78 37 16 33 Terrain Rammed . | . . . . . . . . . . . . . . . . . . Walls Destroyed . | . . . . . . . . . . . . . . . . . . Machines Disabled . | . . . . . . . . . . . . . . . . . . Actions | -11 -10 -10 -9 -6 -6 -6 -6 -5 -5 -5 -5 -5 -5 -4 -3 -2 -1 --------- Run | Yrd Mat Sub Scr Fac Low Low Dat Pro Fac Ext Cet Arc Hub Fac Res Res Acc Total 10579 | 47 856 501 197 1316 803 370 81 676 403 387 303 176 668 854 1072 1160 709 Wait 615 | . 176 6 . 34 6 16 . . 8 14 33 3 70 50 65 80 54 Move 8717 | 34 613 454 193 1127 795 329 81 676 317 319 243 160 460 690 911 762 553 Hop 1 | . . . . . . . . . . 1 . . . . . . . Pick Up 116 | 4 5 . 1 23 . 1 . . 13 4 2 . 7 23 12 16 5 Fast Attach 86 | 8 . 2 . 14 . . . . 2 . 3 . 7 6 4 37 3 Attach 75 | . 1 1 . 7 . 2 . . 4 1 1 . 15 4 2 26 11 Detach 21 | 1 . . . 3 . . . . 3 . . . . 2 . 12 . Swap 128 | . 4 4 1 20 . 1 . . 10 6 8 2 7 10 15 30 10 Drop 131 | . 3 3 2 11 . . . . 22 6 9 2 5 15 22 27 4 Fire 672 | . 54 31 . 77 2 21 . . 22 29 4 9 96 54 39 167 67 Melee . | . . . . . . . . . . . . . . . . . . Ram 1 | . . . . . . . . . . . . . . . . . 1 Kick 1 | . . . . . . . . . . . . . . . . 1 . Crush 6 | . . . . . . . . . . . . . 1 . 2 2 1 Escape Stasis 9 | . . . . . . . . . 2 7 . . . . . . . Rewire . | . . . . . . . . . . . . . . . . . . Trap . | . . . . . . . . . . . . . . . . . . Miscellaneous . | . . . . . . . . . . . . . . . . . . Route ------- -11/Scrapyard -10/Materials (discovered 6 exits: *Mat x3 / *Min x2 / *Sub) -10/Subcaves (discovered 4 exits: *Mat x2 / Rec / [*Scr]) -9/Scraptown -6/Factory (discovered 4 exits: *Fac x2 / *Low x2) -6/Lower Caves -6/Lower Caves -6/Data Miner -5/Proximity Caves -5/Factory (discovered 3 exits: Upp x2 / *Ext) -5/Extension (discovered 3 exits: *Fac x2 / *Cet) -5/Cetus (discovered 2 exits: *Fac / *Arc) -5/Archives (discovered 3 exits: *Fac / *Hub x2) -5/Hub_04(d) (discovered 4 exits: *Fac x4) -4/Factory (discovered 4 exits: *Res x4) -3/Research -2/Research -1/Access (discovered 1 exit: Sur) History --------- Turn | Location | Event 20 | -11/Scrapyard | Identified exit to Materials 20 | -11/Scrapyard | Discovered exit to Materials (range 16) 66 | -11/Scrapyard | Entered Materials 66 | -10/Materials | Evolved 1 slot: Utility x1 204 | -10/Materials | Identified exit to Mines 204 | -10/Materials | Discovered exit to Mines (range 15) 271 | -10/Materials | Identified exit to Materials 271 | -10/Materials | Discovered exit to Materials (range 16) 315 | -10/Materials | Build established: Hacker-Mutant 411 | -10/Materials | Discovered exit to Materials (range 5) 1158 | -10/Materials | Discovered exit to Materials (range 10) 1203 | -10/Materials | Discovered exit to Mines (range 9) 1379 | -10/Materials | Identified exit to Subcaves 1379 | -10/Materials | Discovered exit to Subcaves (range 11) 1397 | -10/Materials | Entered Subcaves 1398 | -10/Subcaves | Approached by a straggling Scientist 1413 | -10/Subcaves | Identified exit to Recycling 1617 | -10/Subcaves | Core integrity fell below 50% 1935 | -10/Subcaves | Identified exit to Materials 1935 | -10/Subcaves | Discovered exit to Materials (range 15) 1977 | -10/Subcaves | A Subdweller sparked back to life 1977 | -10/Subcaves | A Subdweller sparked back to life 2015 | -10/Subcaves | Discovered exit to Materials (range 14) 2024 | -10/Subcaves | Scientist uncovered a shortcut to Scraptown 2031 | -10/Subcaves | Ambushed by Subdwellers from Twisted Machinery 2057 | -10/Subcaves | A swath of the cavern ceiling suddenly collapsed 2083 | -10/Subcaves | Learned Materials emergency access door positions 2229 | -10/Subcaves | Entered Scraptown 2422 | -9/Scraptown | Visited UFD Registry 2446 | -9/Scraptown | Visited TADAMA 2537 | -9/Scraptown | Identified exit to Factory 2537 | -9/Scraptown | Discovered exit to Factory (range 3) 2542 | -9/Scraptown | Entered Factory 2542 | -6/Factory | Evolved 8 slots: Power x1, Utility x5, Weapon x2 2856 | -6/Factory | Build established: Hauler-Gunner 4218 | -6/Factory | Identified exit to Factory 4218 | -6/Factory | Discovered exit to Factory (range 4) 5560 | -6/Factory | Identified exit to Lower Caves 5560 | -6/Factory | Discovered exit to Lower Caves (range 6) 6224 | -6/Factory | Lost 3 parts (1p1u1w) 6778 | -6/Factory | Discovered exit to Factory (range 16) 6894 | -6/Factory | Discovered exit to Lower Caves (range 10) 7811 | -6/Factory | Entered Lower Caves 8249 | -6/Lower Caves | Learned Factory security intel 9546 | -6/Lower Caves | Entered a destroyed Warlord outpost 9735 | -6/Lower Caves | Learned Factory terminal intel 11012 | -6/Lower Caves | Identified exit to Lower Caves 11012 | -6/Lower Caves | Discovered exit to Lower Caves (range 7) 11044 | -6/Lower Caves | Entered another Lower Caves area 11835 | -6/Lower Caves | Spotted B-75 Beast 11878 | -6/Lower Caves | Destroyed B-75 Beast 12361 | -6/Lower Caves | Encountered a Warlord checkpoint 12367 | -6/Lower Caves | Identified exit to Data Miner 12367 | -6/Lower Caves | Discovered exit to Data Miner (range 7) 12388 | -6/Lower Caves | Entered Data Miner 12388 | -6/Data Miner | Identified exit to Proximity Caves 12388 | -6/Data Miner | Discovered exit to Proximity Caves (range 6) 12454 | -6/Data Miner | Met Data Miner 12526 | -6/Data Miner | Learned location of Section 7 (-3) 12526 | -6/Data Miner | Acquired the access code to Warlord's prototype stash 12592 | -6/Data Miner | Received God Mode back door access code from Data Miner 12668 | -6/Data Miner | Entered Proximity Caves 14069 | -5/Proximity Caves | Discovered exit to Factory (range 11) 15001 | -5/Proximity Caves | Entered Factory 15001 | -5/Factory | Evolved 2 slots: Utility x2 15002 | -5/Factory | Identified exit to Upper Caves 15004 | -5/Factory | Loaded intel: 28 terminal locations 15286 | -5/Factory | Incoming investigation squad redirected 16196 | -5/Factory | Destroyed 7 combat bots 16304 | -5/Factory | Identified exit to Extension 16304 | -5/Factory | Discovered exit to Extension (range 6) 16392 | -5/Factory | Entered Extension 16485 | -5/Extension | Build established: Hauler-Tank 16563 | -5/Extension | Rescued a captive Derelict 16947 | -5/Extension | Rescued a captive Derelict 16974 | -5/Extension | Spotted B-75 Beast 17000 | -5/Extension | Destroyed B-75 Beast 17033 | -5/Extension | Spotted B-75 Beast 17046 | -5/Extension | Destroyed B-75 Beast 17155 | -5/Extension | Identified exit to Factory 17155 | -5/Extension | Discovered exit to Factory (range 3) 17412 | -5/Extension | Rescued a captive Derelict 17412 | -5/Extension | Rescued a captive Derelict 17586 | -5/Extension | Rescued A7 17622 | -5/Extension | Rescued a captive Derelict 17622 | -5/Extension | Rescued a captive Derelict 17769 | -5/Extension | Discovered exit to Factory (range 10) 17773 | -5/Extension | Identified exit to Cetus 17773 | -5/Extension | Discovered exit to Cetus (range 6) 17805 | -5/Extension | Entered Cetus 17805 | -5/Cetus | Accompanied by 5 allies (A7) 17810 | -5/Cetus | Acquired a Cetus Manufacturing Module code from A7 17853 | -5/Cetus | Spotted Cetus Guard 17853 | -5/Cetus | Spotted Cetus Guard 17856 | -5/Cetus | Spotted Cetus Guard 17860 | -5/Cetus | Allies destroyed Cetus Guard 17861 | -5/Cetus | Spotted Cetus Guard 17865 | -5/Cetus | Allies destroyed Cetus Guard 17866 | -5/Cetus | Allies destroyed Cetus Guard 17873 | -5/Cetus | Allies destroyed Cetus Guard 18023 | -5/Cetus | Started Cetus Manufacturing Module 18044 | -5/Cetus | Escorted A7 to Cetus Mainframe 18048 | -5/Cetus | Manufactured an Enhanced Grunt 18073 | -5/Cetus | Manufactured an Enhanced Grunt 18098 | -5/Cetus | Manufactured an Enhanced Grunt 18123 | -5/Cetus | Manufactured an Enhanced Grunt 18148 | -5/Cetus | Manufactured an Enhanced Grunt 18222 | -5/Cetus | Build established: Scavenger-Tank 18337 | -5/Cetus | Identified exit to Archives 18337 | -5/Cetus | Discovered exit to Archives (range 15) 18398 | -5/Cetus | Spotted Cetus Guard 18398 | -5/Cetus | Spotted Cetus Guard 18401 | -5/Cetus | Spotted Cetus Guard 18404 | -5/Cetus | Allies destroyed Cetus Guard 18405 | -5/Cetus | Spotted Cetus Guard 18422 | -5/Cetus | Allies destroyed Cetus Guard 18423 | -5/Cetus | Allies destroyed Cetus Guard 18436 | -5/Cetus | Discovered exit to Factory (range 16) 18437 | -5/Cetus | Lost 3 allies 18452 | -5/Cetus | Met Revision 17 18555 | -5/Cetus | Security sweep announced 18667 | -5/Cetus | Entered Archives 18667 | -5/Archives | Accompanied by 5 allies (A7) 18672 | -5/Archives | Received a hacking code to weaken MAIN.C 18772 | -5/Archives | Unable to access archive contents 18804 | -5/Archives | Unable to access archive contents 18820 | -5/Archives | Identified exit to Hub_04(d) 18820 | -5/Archives | Discovered exit to Hub_04(d) (range 15) 18849 | -5/Archives | Unable to access archive contents 18862 | -5/Archives | Discovered exit to Hub_04(d) (range 13) 19034 | -5/Archives | Discovered exit to Factory (range 16) 19213 | -5/Archives | Entered Hub_04(d) 19213 | -5/Hub_04(d) | Accompanied by 1 ally 19374 | -5/Hub_04(d) | Discovered exit to Factory (range 8) 19980 | -5/Hub_04(d) | Network Hub disabled 20175 | -5/Hub_04(d) | Discovered exit to Factory (range 5) 20278 | -5/Hub_04(d) | Destroyed 7 combat bots 20373 | -5/Hub_04(d) | Spotted Lightning 20373 | -5/Hub_04(d) | Spotted Lightning 20404 | -5/Hub_04(d) | Spotted Lightning 20412 | -5/Hub_04(d) | System corruption reached 10% 20475 | -5/Hub_04(d) | Lost 8 parts (1p4u3w) 20522 | -5/Hub_04(d) | Destroyed Lightning 20534 | -5/Hub_04(d) | System corruption reached 30% 20536 | -5/Hub_04(d) | Destroyed Lightning 20564 | -5/Hub_04(d) | Lost 7 parts (1p1n1u4w) 20621 | -5/Hub_04(d) | Destroyed Lightning 20807 | -5/Hub_04(d) | Build established: Hauler-Tank 21049 | -5/Hub_04(d) | Discovered exit to Factory (range 10) 21090 | -5/Hub_04(d) | Discovered exit to Factory (range 15) 21150 | -5/Hub_04(d) | Spotted Lightning 21153 | -5/Hub_04(d) | Spotted Lightning 21157 | -5/Hub_04(d) | Spotted Lightning 21157 | -5/Hub_04(d) | Entered Factory 21157 | -4/Factory | Evolved 2 slots: Propulsion x2 21464 | -4/Factory | Build established: Scavenger-Tank 21646 | -4/Factory | Incoming assault squad redirected 21952 | -4/Factory | Destroyed 8 combat bots 22687 | -4/Factory | Build established: Hauler-Tank 22752 | -4/Factory | Identified exit to Research 23079 | -4/Factory | Build established: Hauler-Gunner 23116 | -4/Factory | Entered Research 23116 | -3/Research | Evolved 2 slots: Utility x2 23171 | -3/Research | Found Unknown Launcher 23316 | -3/Research | Revision forces began assault on 0b10 23335 | -3/Research | Met up with Revision 17++ 23546 | -3/Research | Fabricated E-15 Imp (x2) 23816 | -3/Research | Research terminal network offline 23904 | -3/Research | Spotted Striker 23923 | -3/Research | Destroyed Striker 23953 | -3/Research | Lost 4 allies 23994 | -3/Research | Identified Gamma Bomb Array 24215 | -3/Research | Fabricated B-48 Gladiator? 24238 | -3/Research | Build established: Hauler-Tank 24400 | -3/Research | Spotted Striker 24400 | -3/Research | Spotted Executioner 24405 | -3/Research | Destroyed Striker 24408 | -3/Research | Destroyed Executioner 24872 | -3/Research | Spotted Executioner 24872 | -3/Research | Spotted Executioner 24872 | -3/Research | Spotted Striker 24884 | -3/Research | Destroyed Executioner 24886 | -3/Research | Destroyed Striker 24887 | -3/Research | Destroyed Executioner 24917 | -3/Research | Lost 3 allies 25296 | -3/Research | Identified exit to Research 25296 | -3/Research | Discovered exit to Research (range 16) 25460 | -3/Research | Fabricated B-60 Warrior (x3) 25488 | -3/Research | Entered another Research area 25488 | -2/Research | Accompanied by 3 allies 25488 | -2/Research | Evolved 2 slots: Utility x2 25529 | -2/Research | Build established: Hauler-Gunner 25655 | -2/Research | Found Gamma Bomb Array 25658 | -2/Research | Found Gamma Bomb Array 25720 | -2/Research | Spotted B-90 Cyclops 25819 | -2/Research | Lost 3 allies 25950 | -2/Research | Lost 3 parts (1u2w) 25967 | -2/Research | System corruption reached 10% 26019 | -2/Research | Lost 7 parts (3n2u2w) 26149 | -2/Research | Found Unknown Device 26149 | -2/Research | Identified Quantum Capacitor 26378 | -2/Research | Lost 8 parts (1p4u3w) 26431 | -2/Research | Lost 5 parts (2u3w) 26712 | -2/Research | Build established: Scavenger-Gunner 27180 | -2/Research | Garrison activated, responded to threat 27292 | -2/Research | Garrison activated, responded to threat 27368 | -2/Research | Lost 7 parts (3n2u2w) 27629 | -2/Research | Garrison activated, responded to threat 27663 | -2/Research | Lost 3 parts (3w) 28216 | -2/Research | Found Prototype Launcher 28224 | -2/Research | Identified exit to Access 28224 | -2/Research | Discovered exit to Access (range 11) 28259 | -2/Research | Found Fusion Bomb Launcher 28290 | -2/Research | Entered Access 28290 | -1/Access | Evolved 2 slots: Weapon x2 28539 | -1/Access | Garrison activated, responded to threat 28587 | -1/Access | Build established: Scavenger-Executioner 28728 | -1/Access | Identified exit to Surface 28854 | -1/Access | Garrison activated, responded to threat 28870 | -1/Access | Energy Cycler disabled 28935 | -1/Access | Destroyed 10 combat bots 28938 | -1/Access | Lost 9 parts (1p5u3w) 29067 | -1/Access | Incoming assault squad redirected 29307 | -1/Access | Incoming assault squad redirected 29427 | -1/Access | Lost 3 parts (1p2w) 29478 | -1/Access | Released all parts (14) 29504 | -1/Access | Lost 4 parts (2u2w) 29505 | -1/Access | Spotted B-99 Colossus 29507 | -1/Access | Spotted B-99 Colossus 29520 | -1/Access | Core integrity fell below 50% 29531 | -1/Access | Core integrity fell below 20% 29589 | -1/Access | Destroyed by H-81 Overseer with Heavy Linear Accelerator Last Messages --------------- 29524_ Penetrated by Slug. 29524_ Slug penetrates P-80 Master. 29524_ Penetrated by Slug. 29524_ Slug penetrates P-80 Master. 29524_ Acquired 4 matter. 29526_ P-80 Master destroyed. 29526_ U-05 Engineer destroyed. 29526_ Penetrated by Slug. 29526_ Slug penetrates Wall. 29527_ Knocked back. 29529_ Triggered Shock Trap. 29529_ The floor emits a surge of raw power. 29530_ B-99 Colossus activates siege mode. 29530_ Penetrated by Slug. 29532_ Slug penetrates Wall. 29536_ W-44 Eye distress signal alerts nearby ally. 29555_ System corrupted: Matter fused (-5). 29560_ Slammed into S-43 Plague. 29582_ System corrupted: IFF burst signal emitted. [Achievement: 30k Club] Map ----- +----------------------------------------------------+ | ??????????????????????????# "" + | | ??????????????????????????# S ########### | | ??????????????????????????# "" #??????#### | | ??????????????????????????# "" #??????# | | ??????????????????????????# "" #??????# = | | ??????????????????????????# #??????# = | | ??????????????????????????# #??????# | | ??????????????????????????# #??????# ! | | ???????????????????##############/######??????# | | ??????????????????# # #??????######### | | ??????????????????# + #???###? | | ??????????????????# """"" # #?? # | | ????????????????????????""Y"" # #?? # | | ???????????????????????? ?# #? # " | | ??????????????????????? ?# #? # """" | | ?????????????????????? " ??# # # """"" | | ????????????????????? """ ??# # # """" | | ????????????????????? """ ???# + # """" | | ??????????????????????? " ???# # # " | | ???????????????????????? ????# # # | | ??????????????????????? ????# #? # = | | ??????????????????????###+##???# #? # | | ?????????????########## ##### #??! ########## | | ?????????????# #??####????????? | | ?????????????# % H % #??????????????? | | ?????????????# ####### @ ########??????????????? | | ??????????????????????######?????????????????????? | | ?????????????????????????????????????????????????? | | ?????????????????????????????????????????????????? | | ?????????????????????????????????????????????????? | | ?????????????????????????????????????????????????? | | ?????????????????????????????????????????????????? | | ?????????????????????????????????????????????????? | | ?????????????????????????????????????????????????? | | ?????????????????????????????????????????????????? | | ?????????????????????????????????????????????????? | | ?????????????????????????????????????????????????? | | ?????????????????????????????????????????????????? | | ?????????????????????????????????????????????????? | | ?????????????????????????????????????????????????? | | ?????????????????????????????????????????????????? | | ?????????????????????????????????????????????????? | | ?????????????????????????????????????????????????? | | ?????????????????????????????????????????????????? | | ?????????????????????????????????????????????????? | | ?????????????????????????????????????????????????? | | ?????????????????????????????????????????????????? | | ?????????????????????????????????????????????????? | | ??????????????????????????????????????????????#### | | ??????????????????????????????????????????????# | +----------------------------------------------------+ Best States ------------- Heat Dissipation 228 Coolant Potential 200 Energy Generation 51 Energy Capacity 580 Matter Stores 300 Matter Capacity 300 Sight Range 21 Robot Scan Range 14 Terrain Scan Range 16 Terrain Scan Density 10 Power Amplification 30 EM Shielding 3 Armor Coverage 825 Resistance: KI 35 Resistance: TH 55 Resistance: EX 35 Resistance: EM 50 Resistance: I 35 Resistance: S 35 Resistance: P 35 Utility Shielding 33 Weapon Shielding 33 Point Defense Rating 240 Weapon Cycling 20 Evasion (%) 50 Targeting Accuracy 14 Target Analysis 8 Recoil Reduction 4 Particle Charging 25 Kinecelleration 40 Offensive Hacking 20 Item Schematics ----------------- Lyr. Medium Armor Plating | -6/Factory | Hacked Hvy. EM Shotgun | -6/Factory | Scanalyzed Adv. EMP Blaster | -6/Factory | Scanalyzed Combat Drone Bay | -6/Data Miner | Free Lgt. Regenerative Plating | -6/Data Miner | Free Enh. Flexi-carbon Leg | -6/Data Miner | Free Imp. Energy Well | -6/Data Miner | Free Cld. Plasma Rifle | -6/Data Miner | Free Impulse Thruster | -6/Data Miner | Free Adv. Coolant Injector | -6/Data Miner | Free Railgun | -6/Data Miner | Free Imp. Coolant Injector | -5/Extension | Hacked Adv. Drone Bay | -5/Hub_04(d) | Hacked Imp. Weapon Cycler | -5/Hub_04(d) | Hacked Nova Cannon | -4/Factory | Hacked Imp. Treads | -4/Factory | Scanalyzed Robot Schematics ------------------ R-10 Processor | -6/Data Miner | Free S-27 Virus | -6/Data Miner | Free B-60 Warrior | -6/Data Miner | Free B-48 Gladiator | -6/Data Miner | Free Fabricated ------------ E-15 Imp | x2 | -3/Research | Preloaded B-48 Gladiator | x3 | -3/Research B-60 Warrior | x3 | -3/Research Repaired ---------- Nothing Studied --------- Thermic Laser | -6/Factory | Hacked Arm. Treads | -6/Factory | Hacked Adv. Assault Cannon | -6/Factory | Hacked KE Penetrator | -4/Factory | Hacked Alien Tech Used ----------------- None Achievements -------------- 30k Club Explosive Keycard Ghost 'Em Hydra Main Advantage No Explosion For You Packrat Project G-00 Prolific Hacker Revising The Future Revolutionary Research Challenges ------------ None Game ------ Seed RainbowHardenedArmor Manual? 0 Play Time 02:59:11 Cumulative 153.1 hours Start 2025.11.05 @ 12:45:40 End 2025.11.06 @ 14:01:45 Sessions 3 Manual Loads 0 Difficulty Explorer Special Mode None Game No. 291 Rogue 216 Adventurer 15 Explorer 60 Win Type - Total 7 Types 7/0/0/0/0/0/0/0/0/0 Lore% 48 Gallery% 58 Achievement% 37 Wizard Run 0 Options --------- Layout 0 ASCII 0 Keyboard 1 Movement Numpad Keybinds 0 Fullscreen 2 Font 18/SmallcapsGlow Map View 76x50 Zoom Use 0% Tactical HUD 1 Map Filters NONE Filters NONE Steam 1 RUN: 6fbb8594-fcd6-4e45-8aef-7b6433b3a78c